Cogmind - Beta 14 @@@ ROGUE MODE // 2024.12.15 @ 21:28:13 Player: Kazimir57 Result: Destroyed by G-34 Mercenary with Small Laser Performance ------------- Evolutions (1) 500 Regions Visited (2) 400 Robots Destroyed (18) 90 Value Destroyed (547) 547 Prototype IDs (2) 40 Alien Tech Used (0) 0 Bonus (0) 0 TOTAL SCORE: 1577 Bonus ------- None Cogmind --------- Core Integrity 0/400 Matter 160/300 Energy 94/160 System Corruption 9% Temperature Cool (6) Movement Core (250) Ox4 Location -9/Materials Parts ------- > --- POWER (1) -------- Light Nuclear Core > --- PROPULSION (3) --- (None) > --- UTILITY (3) ------ Medium Storage Unit Signal Interpreter > --- WEAPON (2) ------- (None) > --- INVENTORY (10) --- Large Storage Unit Signal Interpreter Light Armor Plating Light Armor Plating Peak State ------------ > --- POWER ------------ Ion Engine > --- PROPULSION ------- Aluminum Leg Aluminum Leg > --- UTILITY ---------- Medium Storage Unit Signal Interpreter > --- WEAPON ----------- Light Assault Rifle Light Cannon > --- INVENTORY -------- Ion Engine Light Nuclear Core Large Storage Unit Signal Interpreter ECM Suite Light Armor Plating Light Armor Plating Light Cannon [Rating: 8] Favorites ----------- Power Ion Engine Engine Ion Engine Power Core Light Nuclear Core Propulsion Light Treads Treads Light Treads Leg Aluminum Leg Utility ECM Suite Device ECM Suite Storage Small Storage Unit Processor Signal Interpreter Weapon Assault Rifle Ballistic Gun Assault Rifle Ballistic Cannon Light Cannon Launcher Grenade Launcher Build | -11 -10 -9 ------- Run | Yrd Mat Mat Slots Evolved 2 | . . 2 Power . | . . . Propulsion 1 | . . 1 Utility 1 | . . 1 Weapon . | . . . Parts Attached 31 | 6 21 4 Power 5 | 1 2 2 Engine 4 | 1 2 1 Core 1 | . . 1 Reactor . | . . . Propulsion 10 | 2 8 . Treads 2 | 2 . . Leg 8 | . 8 . Wheel . | . . . Hover . | . . . Flight . | . . . Utility 5 | 1 3 1 Device 2 | . 1 1 Storage 2 | 1 1 . Processor 1 | . 1 . Hackware . | . . . Protection . | . . . Artifact . | . . . Weapon 11 | 2 8 1 Energy Gun . | . . . Energy Cannon . | . . . Ballistic Gun 6 | 2 4 . Ballistic Cannon 3 | . 3 . Launcher 2 | . 1 1 Special Weapon . | . . . Impact Weapon . | . . . Slashing Weapon . | . . . Piercing Weapon . | . . . Special Melee Weapon . | . . . Unidentified Prototypes . | . . . Parts Lost 15 | . 7 8 Power 3 | . 1 2 Propulsion 5 | . 3 2 Utility 1 | . . 1 Weapon 6 | . 3 3 Highest Loss Streak 8 | . 7 8 To Critical Strikes . | . . . Average Slot Usage (%) 92 | . 96 78 Engine 12 | . 13 9 Treads 12 | . 16 . Leg 12 | . 10 17 Device 10 | . 10 10 Storage 13 | . 13 11 Processor 4 | . 2 11 Ballistic Gun 17 | . 20 8 Ballistic Cannon 3 | . 4 . Launcher 2 | . . 9 Peak Build Rating 8 | 6 8 8 Average Rating 6 | 5 6 7 On Entrance 4 | . 6 8 Naked Turns . | . . . Heaviest Build 21 | 14 19 21 Greatest Support 40 | 40 40 20 Greatest Overweight (x) 5 | . 1 5 Average Overweight (x) . | . . 1 Largest Inventory Capacity 10 | 8 10 10 Average Capacity 8 | 6 8 10 Most Carried 10 | 3 10 7 Average Carried 6 | 1 6 6 Final Capacity 10 | 8 10 10 Final Carried 8 | 3 8 4 Class Distribution -------------------- 100% | Mutant Dominant Class ---------------- Mutant | -10/Materials Mutant | -9/Materials Resources | -11 -10 -9 ----------- Run | Yrd Mat Mat Matter Collected 659 | 223 436 . Remotely . | . . . Salvage Created 554 | . 459 95 Parts 37 | . 30 7 Haulers Intercepted . | . . . Recyclers Shooed 1 | . 1 . Parts Field Recycled . | . . . Retrieved Matter . | . . . Parts Self-Destructed . | . . . Prevented . | . . . Kills | -11 -10 -9 ------- Run | Yrd Mat Mat Combat Hostiles Destroyed 13 | . 12 1 Guns 7 | . 7 . Cannons 4 | . 4 . AOE 2 | . 1 1 Classes Destroyed 6 | . 3 3 Builder 2 | . . 2 Recycler 1 | . . 1 Mechanic 1 | . 1 . Watcher 1 | . 1 . Grunt 12 | . 12 . Sentry 1 | . . 1 Best Kill Streak 4 | . 3 4 Combat Bots Only 3 | . 3 1 Max Kills in Single Turn 2 | . 1 2 Gunslinging . | . . . Exploded 1 | . 1 1 Melee . | . . . Uniques/NPCs Destroyed . | . . . Combat | -11 -10 -9 -------- Run | Yrd Mat Mat Hostile Shots Fired 213 | . 124 89 Missed 65 | . 35 30 Damage Taken 2204 | . 1181 1023 Core 546 | . 141 405 Absorbed by Shields . | . . . Core Remaining (%) 71 | 100 43 . Volleys Fired 65 | . 51 14 Largest 2 | . 2 2 Hottest 55 | . 55 50 Shots Fired 103 | . 81 22 Gun 69 | . 57 12 Cannon 23 | . 23 . Launcher 11 | . 1 10 Special . | . . . Kinetic 92 | . 80 12 Thermal . | . . . Explosive 11 | . 1 10 Electromagnetic . | . . . Robot Hit Streak 12 | . 9 12 Robot Miss Streak 2 | . 2 . Penetration Max . | . . . Secondary Targets 2 | . 2 . Max Gunslinging Chain 1 | . 1 . Shots Hit Robots 62 | . 53 9 Core Hits 42 | . 28 14 Critical Kills . | . . . Critical Parts Destroyed . | . . . Critical Strikes 1 | . 1 . Blast 1 | . 1 . Melee Attacks . | . . . Impact . | . . . Slashing . | . . . Piercing . | . . . Sneak Attacks . | . . . Combat Hostiles . | . . . Follow-up Attacks . | . . . Damage Inflicted 1213 | . 776 437 Guns 471 | . 416 55 Cannons 329 | . 329 . Explosions 400 | . 22 378 Melee . | . . . Ramming 13 | . 9 4 Kinetic 800 | . 745 55 Thermal . | . . . Explosive 400 | . 22 378 Electromagnetic . | . . . Impact . | . . . Slashing . | . . . Piercing . | . . . Highest Corruption 9 | . . 9 Average Corruption 8 | . . 8 Corruption Purged . | . . . Corruption Blocked . | . . . Effects 2 | . . 2 Matter Fused 2 | . . 2 Overload Shots . | . . . Overflow Damage 18 | . 1 17 Projectiles 1 | . 1 . Explosions 17 | . . 17 Melee . | . . . Knockbacks 3 | . 3 . Impact . | . . . Kinetic 3 | . 3 . Secondary . | . . . Self-Inflicted Damage 186 | . . 186 Shots 6 | . . 6 Rammed 6 | 1 2 3 Targets Rammed 7 | 1 3 3 Kicked 1 | . 1 . Crushed . | . . . Highest Temperature 109 | . 109 16 Average Temperature 26 | . 31 7 Received Heat Transfer 915 | . 708 207 Siege Activations . | . . . Robots Corrupted . | . . . Combat Hostiles . | . . . Parts Fried . | . . . Impact Corruptions . | . . . Robots Melted . | . . . Combat Hostiles . | . . . Parts Melted . | . . . Heat Transferred . | . . . Parts Sabotaged . | . . . Parts Stolen . | . . . Parts Stripped . | . . . Power Chain Reactions . | . . . Alert | -11 -10 -9 ------- Run | Yrd Mat Mat Peak Influence 165 | . 165 156 Initial 32 | . . 32 Average 70 | . 78 63 Maximum Alert Level . | . . . Low Security (%) 100 | 100 100 100 Level 1 . | . . . Level 2 . | . . . Level 3 . | . . . Level 4 . | . . . Level 5 . | . . . High Security . | . . . Max Security . | . . . Squads Dispatched 3 | . 2 1 Investigation 1 | . 1 . Extermination . | . . . Reinforcement 2 | . 1 1 Assault . | . . . Garrison . | . . . Intercept . | . . . Searches Triggered . | . . . Construction Impeded 1 | . . 1 Haulers Reinforced . | . . . Active Scanning Responses . | . . . Cargo Convoy Interrupts . | . . . Stealth | -11 -10 -9 --------- Run | Yrd Mat Mat Distress Signals 3 | . 1 2 Communications Jammed . | . . . Distress Signals . | . . . Times Spotted 35 | . 21 14 Peak Tracking Total 9 | . 5 9 Tactical Retreats 3 | . 1 2 Traps | -11 -10 -9 ------- Run | Yrd Mat Mat Traps Triggered 3 | . 1 2 Indirectly . | . . . Trap Hack Attempts . | . . . Triggered . | . . . Disarmed . | . . . Reprogrammed . | . . . Reused . | . . . Traps Extracted . | . . . Installed . | . . . Triggered . | . . . Machines | -11 -10 -9 ---------- Run | Yrd Mat Mat Machines Disabled 2 | . 1 1 Max in Single Turn 1 | . 1 1 Machines Repaired . | . . . Machines Dismantled . | . . . Machines Sabotaged . | . . . Overloaded Fab Kills . | . . . Hacking | -11 -10 -9 --------- Run | Yrd Mat Mat Machines Accessed 3 | . 2 1 Terminals 3 | . 2 1 Fabricators . | . . . Repair Stations . | . . . Recycling Units . | . . . Scanalyzers . | . . . Garrison Access . | . . . Total Hacks 4 | . 3 1 Successful 2 | . 1 1 Failed 2 | . 2 . Catastrophic . | . . . Database Lockouts . | . . . Manual . | . . . Terminals 4 | . 3 1 Fabricators . | . . . Repair Stations . | . . . Recycling Units . | . . . Scanalyzers . | . . . Garrison Access . | . . . Terminal Hacks 2 | . 1 1 Record 1 | . 1 . Prototype ID Bank 1 | . . 1 Fabricator Hacks . | . . . Repair Station Hacks . | . . . Recycling Unit Hacks . | . . . Scanalyzer . | . . . Garrison Access Hacks . | . . . Unauthorized Hacks . | . . . Terminals . | . . . Fabricators . | . . . Repair Stations . | . . . Recycling Units . | . . . Scanalyzers . | . . . Garrison Access . | . . . Data Cores Recovered . | . . . Used . | . . . Hacking Detections 1 | . 1 . Full Trace Events . | . . . Feedback Events . | . . . Feedback Blocked . | . . . Robot Schematics Acquired . | . . . Robots Built . | . . . Authchips . | . . . Time . | . . . Total Robot Build Rating . | . . . Part Schematics Acquired . | . . . Parts Built . | . . . Authchips . | . . . Time . | . . . Total Part Build Rating . | . . . Parts Repaired . | . . . Time . | . . . Parts Recycled . | . . . Recycled Matter . | . . . Retrieved Matter . | . . . Retrieved Components . | . . . Parts Scanalyzed . | . . . Part Schematics Acquired . | . . . Parts Damaged . | . . . Bothacking | -11 -10 -9 ------------ Run | Yrd Mat Mat Used RIF Installer . | . . . Robots Hacked . | . . . Non-combat . | . . . Combat . | . . . Robot Hacks Applied . | . . . Relay Couplers Released . | . . . Fabnet Peak Effective % . | . . . Robots Rewired . | . . . Allies Hacked . | . . . Hacks Repelled . | . . . Allies | -11 -10 -9 -------- Run | Yrd Mat Mat Total Allies . | . . . Largest Group . | . . . Highest-Rated Group . | . . . Highest-Rated Ally . | . . . Total Orders . | . . . Ally Attacks . | . . . Total Damage . | . . . Kills . | . . . Allies Corrupted . | . . . Allies Melted . | . . . Intel | -11 -10 -9 ------- Run | Yrd Mat Mat Robot Analysis Total . | . . . Derelict Logs Recovered . | . . . Drone Launches . | . . . Drone Recoveries . | . . . Exploration | -11 -10 -9 ------------- Run | Yrd Mat Mat Turns Passed 1337 | 82 949 306 Spaces Moved 671 | 41 500 130 Core 20 | 2 . 18 Treads 308 | 39 269 . Legs 343 | . 231 112 Wheels . | . . . Hover . | . . . Flight . | . . . Fastest Speed 50 | 50 120 190 Average Speed 153 | 154 142 197 Slowest Speed 300 | 160 190 300 Overloaded Moves . | . . . Propulsion Burnouts . | . . . Robots Hopped . | . . . Cave-ins Triggered 2 | . . 2 Exploration Rate (%) 28 | 3 67 16 Regions Visited 2 Branch Regions . Pre-discovered Areas . | . . . Known Exits Taken 1 | . 1 . Unknown Exits Taken 1 | 1 . . Scrap Searched . | . . . Spaces Dug . | . . . Terrain Destroyed 77 | . 12 65 Melee . | . . . Projectile . | . . . AOE 77 | . 12 65 Terrain Rammed . | . . . Walls Destroyed . | . . . Machines Disabled . | . . . Actions | -11 -10 -9 --------- Run | Yrd Mat Mat Total 868 | 56 656 156 Wait 63 | 6 54 3 Move 667 | 40 499 128 Hop . | . . . Pick Up 19 | 3 15 1 Fast Attach 11 | 6 5 . Attach 10 | . 6 4 Detach 1 | . 1 . Swap 10 | . 10 . Drop 13 | . 12 1 Fire 65 | . 51 14 Melee . | . . . Ram 3 | . . 3 Kick 1 | . 1 . Crush 3 | 1 2 . Escape Stasis 2 | . . 2 Rewire . | . . . Trap . | . . . Miscellaneous . | . . . Route ------- -11/Scrapyard -10/Materials (discovered 4 exits: *Mat x2 / [*Min x2]) -9/Materials History --------- Turn | Location | Event 7 | -11/Scrapyard | Discovered new exit (range 15) 83 | -11/Scrapyard | Entered Materials 95 | -10/Materials | Discovered new exit (range 15) 316 | -10/Materials | Build established: Mutant 354 | -10/Materials | Discovered new exit (range 15) 698 | -10/Materials | Core integrity fell below 50% 716 | -10/Materials | Lost 7 parts (1p3n3w) 879 | -10/Materials | Discovered new exit (range 9) 890 | -10/Materials | Identified exit to Materials 992 | -10/Materials | Discovered exit to Materials (range 15) 1032 | -10/Materials | Entered another Materials area 1032 | -9/Materials | Evolved 2 slots: Propulsion x1, Utility x1 1278 | -9/Materials | Crushed by falling debris 1283 | -9/Materials | Crushed by falling debris 1308 | -9/Materials | Core integrity fell below 50% 1327 | -9/Materials | Core integrity fell below 20% 1338 | -9/Materials | Destroyed by G-34 Mercenary with Small Laser Last Messages --------------- 01304_ 15 Matter crushed. 01304_ Grenade Launcher destroyed. 01304_ Destroyed Grenade Launcher. 01306_ K-01 Serf collects debris. 01308_ The unstable cave ceiling collapses. 01309_ G-34 Mercenary crushed by falling debris. 01310_ ECM Suite destroyed. 01321_ The unstable cave ceiling collapses. 01324_ O-16 Technician: "IFF HANDSHAKE FAILED. SECURING TERMINAL." 01325_ K-01 Serf collects debris. 01326_ Slammed into S-10 Pest. 01327_ System corrupted: Matter fused (-5). 01328_ Slammed into S-10 Pest. 01330_ K-01 Serf collects debris. 01331_ Slammed into S-10 Pest. 01331_ Destabilizing: Core damaged (-12). 01332_ Ion Engine destroyed. 01333_ The unstable cave ceiling collapses. 01333_ K-01 Serf collects debris. Map ----- +----------------------------------------------------+ | ?????????????????????????????????????????????????? | | ?????????????????????????????????????????????????? | | ?????????????????????????????????????????????????? | | ?????????????????????????????????????????????????? | | ?????????????????????????????????????????????????? | | ?????????????????????????????????????????????????? | | ?????????????????????????????????????????????????? | | ?????????????????????????????????????????????????? | | ?????????????????????????????????????????????????? | | ?????????????????????????????????????????????????? | | ????????????????????????? ???????????????????????? | | ????????????????????????? ???????????????????????? | | ????????????????????????? ???????????????????????? | | ????????????????????????? ???????????????????????? | | ????????????????????????? ???????????????????????? | | ????????????????????????? ???????????????????????? | | ??????????????????????### ???????????????????????? | | ??????????????????????# +??????????????????????? | | ??????????????????????# #??????????????????????? | | ??????????????????????k +??????????????????????? | | ??????????????????????# #??????????????????????? | | ???????????#######+#### #??????????????????????? | | ???????????? #??????????????????????? | | ???????????????? #??????????????????????? | | ???????????????????? +??????????????????????? | | ?????????????#####+????# @#??????????????????????? | | ?????????????# # s########???????????????? | | ?????????????# /s / #???????????? | | ?????????????# ## ## #???????????? | | ?????????????# ?# #??""" """ #???????????? | | ?????????????# ??# #???"" """ #???????????? | | ?????????????# ???# #???"" """ #???????????? | | ?????????????# ????# #?? #???????????? | | ?????????????# ?????# #? #???????????? | | ?????????????#####??????#g## ????????????? | | ???????????????????????## ###+####### ????????? | | ???????????????????????# ## # ????????? | | ???????????????????????# ##?????????????? | | ???????????????????????# # # #?????????????? | | ????????????????? # # ##????????????? | | ????????????? ## ######+##????? | | ?????????????! ??????######## #????? | | ????????????????????????????# % =%! #????? | | ????????????????????????????### ! #????? | | ?????????????????????????????# """ """ #????? | | ?????????????????????????????# """ """ ##???? | | ?????????????????????????????## # """ """ #???? | | ??????????????????????????????# # #????? | | ??????????????????????????????# #????? | | ??????????????????????????????# #+###??????? | +----------------------------------------------------+ Best States ------------- Heat Dissipation 28 Energy Generation 10 Energy Capacity 250 Matter Stores 300 Matter Capacity 300 Sight Range 16 Terrain Scan Density 10 ECM Strength 1 Evasion (%) 55 Recoil Reduction 2 Item Schematics ----------------- None Robot Schematics ------------------ None Fabricated ------------ Nothing Alien Tech Used ----------------- None Achievements -------------- Unlikely Earthworm Challenges ------------ None Game ------ Seed BraceDrainedReactor Manual? 0 Play Time 00:17:45 Cumulative 7.4 hours Start 2024.12.15 @ 21:04:31 End 2024.12.15 @ 21:28:13 Sessions 1 Manual Loads 0 Difficulty Rogue Special Mode None Game No. 11 Rogue 11 Adventurer 0 Explorer 0 Win Type - Total 0 Types 0/0/0/0/0/0/0/0/0 Lore% 6 Gallery% 15 Achievement% 13 Wizard Run 0 Options --------- Layout 1 ASCII 0 Keyboard 0 Movement Mouse Keybinds 0 Fullscreen 1 Font 24/Smallcaps Map View 50x35 Zoom Use 0% Tactical HUD 1 Map Filters NONE Filters NONE Steam 1 RUN: 34bc7af5-04ab-4212-916c-d8562e8945a6